bitfinex-derivatives/quotes_BTCF0:USTF0_20250803
["timestamp","ask_amount","ask_price","bid_price","bid_amount"]
[1754241129705,0.49548,114160.0,114150.0,2.62103958]
[1754241129908,0.49548,114160.0,114150.0,2.0114122]
[1754241130109,0.13468,114160.0,114150.0,2.62103958]
[1754241130408,0.49548,114160.0,114150.0,2.62103958]
[1754241132705,0.5797747,114170.0,114150.0,3.18685816]
[1754241133005,0.38465,114170.0,114160.0,0.78481998]
[1754241134605,0.5598273,114170.0,114160.0,0.78481998]
[1754241135204,0.5598273,114170.0,114160.0,0.87498398]
[1754241135710,0.5608273,114170.0,114160.0,0.87498398]
[1754241136510,0.5608273,114170.0,114160.0,1.14218398]
[1754241137108,0.38565,114170.0,114160.0,1.14218398]
[1754241138105,0.6699972,114170.0,114160.0,1.14218398]
[1754241143602,0.5608272,114170.0,114160.0,1.14218398]
[1754241144313,0.6699972,114170.0,114160.0,1.14218398]
[1754241146403,0.69181235,114170.0,114160.0,1.14218398]
[1754241148118,0.6699972,114170.0,114160.0,1.14218398]
[1754241148316,0.51663689,114170.0,114160.0,1.14218398]
[1754241153317,0.49482,114170.0,114160.0,1.14218398]
[1754241154921,0.43875,114170.0,114160.0,1.14218398]
[1754241155121,0.49482,114170.0,114160.0,1.14218398]
[1754241155319,0.001,114170.0,114160.0,1.75181136]
[1754241155518,0.001,114170.0,114160.0,1.84541136]
[1754241155814,0.02385001,114180.0,114160.0,1.84540276]
[1754241156021,0.02385,114180.0,114170.0,2.02263196]
[1754241157525,0.02385,114180.0,114170.0,2.52263196]
[1754241157918,0.02385,114180.0,114170.0,2.52363196]
[1754241160425,0.02385,114180.0,114170.0,2.61379596]
[1754241165927,0.02385,114180.0,114170.0,2.88099596]
[1754241168329,0.02385,114180.0,114170.0,2.61379596]
[1754241169334,0.02385,114180.0,114170.0,1.3945412]
[1754241169629,0.02385,114180.0,114170.0,2.61379596]
[1754241176828,0.02385,114180.0,114170.0,2.61279596]
[1754241177028,0.02385,114180.0,114170.0,2.61479596]
[1754241177630,0.02385,114180.0,114170.0,2.61679596]
[1754241177836,0.02385,114180.0,114170.0,2.88399596]
[1754241178327,0.02385,114180.0,114170.0,2.88199596]
[1754241178533,0.02346,114190.0,114180.0,0.3065292]
[1754241178731,0.02346,114190.0,114180.0,2.15370396]
[1754241179037,0.02346,114190.0,114180.0,1.54407658]
[1754241180238,0.02346,114190.0,114180.0,1.63424058]
[1754241181633,0.05431,114190.0,114180.0,1.63424058]
[1754241181827,0.13779,114190.0,114180.0,1.63424058]
[1754241182740,0.13779,114190.0,114180.0,2.31261566]
[1754241183429,0.13779,114190.0,114180.0,1.0933609]
[1754241183633,0.13779,114190.0,114180.0,2.31261566]
[1754241183833,0.13779,114190.0,114180.0,2.57981566]
[1754241185345,0.13779,114190.0,114180.0,1.3605609]
[1754241185542,0.13779,114190.0,114180.0,2.57981566]
[1754241185942,0.13779,114190.0,114180.0,1.3604409]
[1754241186143,0.13779,114190.0,114180.0,0.9558513]
[1754241186342,0.74741738,114190.0,114180.0,1.56579868]
[1754241186747,0.74741738,114190.0,114180.0,0.9561713]
[1754241186939,0.74741738,114190.0,114180.0,1.56579868]
[1754241187141,0.74741738,114190.0,114180.0,1.29847868]
[1754241187342,0.74741738,114190.0,114180.0,1.56599868]
[1754241187741,0.13779,114190.0,114180.0,1.56599868]
[1754241187941,0.74741738,114190.0,114180.0,1.56599868]
[1754241190547,0.74741738,114190.0,114180.0,1.29847868]
[1754241190763,0.74741738,114190.0,114180.0,1.56595868]
[1754241191245,0.74741738,114190.0,114180.0,2.77727868]
[1754241191451,0.74741738,114190.0,114180.0,2.1676513]
[1754241191655,0.74741738,114190.0,114180.0,2.77727868]
[1754241192047,0.13779,114190.0,114180.0,2.77727868]
[1754241192850,0.13779,114190.0,114180.0,2.1676513]
[1754241193049,0.13779,114190.0,114180.0,2.77727868]
[1754241193245,0.13779,114190.0,114180.0,2.1676513]
[1754241193453,0.13779,114190.0,114180.0,2.50979868]
[1754241193639,0.13779,114190.0,114180.0,2.77759868]
[1754241195250,0.13779,114190.0,114180.0,2.50979868]
[1754241195452,0.13779,114190.0,114180.0,2.77763868]
[1754241196550,0.13779,114190.0,114180.0,2.50979868]
[1754241196752,0.13779,114190.0,114180.0,2.77755868]
[1754241198541,0.13779,114190.0,114180.0,2.1679313]
[1754241198748,0.13779,114190.0,114180.0,2.77755868]
[1754241200644,0.13779,114190.0,114180.0,2.77747868]
[1754241201153,1.28336398,114190.0,114180.0,2.77739868]
[1754241201458,0.6737366,114190.0,114180.0,2.77739868]
[1754241201645,1.28336398,114190.0,114180.0,2.77739868]
[1754241203256,1.28336398,114190.0,114180.0,1.8563817]
[1754241203554,1.28336398,114190.0,114180.0,2.1239817]
[1754241204855,1.28336398,114190.0,114180.0,2.1249817]
[1754241206052,1.28336398,114190.0,114180.0,2.1239817]
[1754241206258,1.28336398,114190.0,114180.0,2.1249817]
[1754241211553,1.28336398,114190.0,114180.0,1.8573817]
[1754241211749,1.28336398,114190.0,114180.0,2.1249017]
[1754241213955,1.28336398,114190.0,114180.0,2.73452908]
[1754241215662,1.28336398,114190.0,114180.0,2.1249017]
[1754241215862,1.28336398,114190.0,114180.0,2.73452908]
[1754241216568,1.28336398,114190.0,114180.0,2.1249017]
[1754241217665,0.13779,114190.0,114180.0,2.73452908]
[1754241218058,0.02346,114190.0,114180.0,2.73452908]
[1754241219957,0.14305,114190.0,114180.0,2.73452908]
[1754241220770,0.12082,114190.0,114180.0,2.73452908]
[1754241220968,0.08193,114190.0,114180.0,2.73452908]
[1754241222168,0.11767,114190.0,114180.0,2.73452908]
[1754241223668,0.14163,114190.0,114180.0,2.73452908]
[1754241224863,0.14163,114190.0,114180.0,2.73428908]
[1754241226163,0.63308738,114190.0,114180.0,2.73428908]
[1754241226367,0.02346,114190.0,114180.0,2.1246617]
[1754241226566,0.63308738,114190.0,114180.0,2.73428908]
[1754241226868,0.72421738,114190.0,114180.0,2.73428908]
[1754241227068,0.74894738,114190.0,114180.0,2.73428908]
[1754241233977,0.92409408,114190.0,114180.0,2.73428908]
[1754241237469,0.4921544,114200.0,114180.0,2.46708908]
[1754241237669,0.0964704,114240.0,114180.0,2.46708908]
[1754241237670,0.44795809,114260.0,114190.0,1.58005476]
[1754241237873,0.1997856,114220.0,114210.0,1.14554318]
[1754241238072,0.02468,114220.0,114210.0,0.8033558]
[1754241238273,0.63430738,114220.0,114210.0,1.91298318]
[1754241238670,0.75016738,114220.0,114210.0,1.91298318]
[1754241239068,0.75016738,114220.0,114210.0,1.3033558]
[1754241239270,0.75016738,114220.0,114210.0,1.91302318]
[1754241239672,0.14054,114220.0,114210.0,1.41302318]
[1754241239875,0.14054,114220.0,114210.0,1.41402318]
[1754241240170,0.75016738,114220.0,114210.0,0.8043958]
[1754241240377,0.14054,114220.0,114210.0,1.50418718]
[1754241240776,0.14054,114220.0,114210.0,1.43572973]
[1754241241080,0.14054,114220.0,114210.0,0.8945598]
[1754241241279,0.14054,114220.0,114210.0,0.90305455]
[1754241246082,0.85681043,114220.0,114210.0,0.63557455]
[1754241246382,1.39272243,114220.0,114210.0,0.358924]
[1754241246683,0.315656,114210.0,114200.0,1.47924]
[1754241246991,0.3156866,114190.0,114180.0,0.0927277]
[1754241247187,0.85685653,114190.0,114180.0,0.466982]
[1754241247580,0.85685653,114190.0,114180.0,0.543502]
[1754241249085,0.85685653,114190.0,114180.0,0.585952]
[1754241249282,0.85685653,114190.0,114180.0,0.65708996]
[1754241249478,0.85985653,114190.0,114180.0,0.07113796]
[1754241249688,1.39580853,114190.0,114180.0,0.115164]
[1754241249881,1.41694333,114190.0,114180.0,0.115164]
[1754241250086,1.41894333,114190.0,114180.0,0.115164]
[1754241250794,1.51927393,114190.0,114180.0,0.115164]
[1754241251684,0.978104,114190.0,114180.0,0.3620596]
[1754241251881,0.6568066,114190.0,114180.0,1.09228953]
[1754241252085,0.6913366,114190.0,114180.0,1.09228953]
[1754241252489,0.6913366,114190.0,114180.0,0.5511196]
[1754241256696,0.6893366,114190.0,114180.0,0.5511196]
[1754241260001,0.6863366,114190.0,114180.0,0.5511196]
[1754241260298,0.6863366,114190.0,114180.0,0.5521196]
[1754241260794,0.6863366,114190.0,114180.0,0.8193196]
[1754241260994,0.6863366,114190.0,114180.0,0.7955296]
[1754241262099,0.6863366,114190.0,114180.0,0.7945296]
[1754241262390,0.6863366,114190.0,114180.0,0.7415596]
[1754241262598,1.22750653,114190.0,114180.0,0.8972596]
[1754241262894,1.22750653,114190.0,114180.0,0.7220977]
[1754241263088,1.22750653,114190.0,114180.0,0.9298596]
[1754241263695,1.22750653,114190.0,114180.0,0.7546977]
[1754241264098,1.22750653,114190.0,114180.0,0.9298196]
[1754241265195,1.22950653,114190.0,114180.0,0.9298196]
[1754241265396,1.22950653,114190.0,114180.0,1.0404996]
[1754241265788,1.23050653,114190.0,114180.0,1.0404996]
[1754241266597,1.23050653,114190.0,114180.0,0.7732996]
[1754241267595,1.23050653,114190.0,114180.0,0.7952896]
[1754241267994,1.23050653,114190.0,114180.0,0.8190796]
[1754241269391,1.23050653,114190.0,114180.0,0.4547377]
[1754241269693,1.23050653,114190.0,114180.0,0.6624996]
[1754241269890,0.6893366,114190.0,114180.0,0.7659896]
[1754241270094,0.6893366,114190.0,114180.0,0.8189596]
[1754241271083,0.2095766,114190.0,114180.0,1.36012953]
[1754241271692,0.2865366,114190.0,114180.0,1.36012953]
[1754241271897,0.3231066,114190.0,114180.0,1.36012953]
[1754241272198,0.3201066,114190.0,114180.0,0.8189596]
[1754241272386,0.3201066,114190.0,114180.0,1.1797596]
[1754241272789,0.3546366,114190.0,114180.0,1.1797596]
[1754241275600,0.3546366,114190.0,114180.0,1.4469596]
[1754241277489,0.37602391,114190.0,114180.0,1.4469596]
[1754241277891,0.37602391,114190.0,114180.0,1.0861596]
[1754241278691,0.3546366,114190.0,114180.0,1.0861596]
[1754241280204,0.37602954,114190.0,114180.0,1.0861596]
[1754241283803,0.91719947,114190.0,114180.0,0.8183196]
[1754241284009,0.91719947,114190.0,114180.0,1.0867596]
[1754241284808,0.37602954,114190.0,114180.0,1.0867596]
[1754241288323,0.19653954,114190.0,114180.0,1.0867596]
[1754241288510,0.02139294,114190.0,114180.0,1.98872953]
[1754241288711,0.262687,114210.0,114200.0,0.3744212]
[1754241288903,0.262687,114210.0,114200.0,1.18395113]
[1754241289106,0.262687,114210.0,114200.0,0.6427812]
[1754241289308,0.294767,114210.0,114200.0,0.6427812]
[1754241289508,0.339007,114210.0,114200.0,0.6427812]
[1754241289910,0.389477,114210.0,114200.0,0.6427812]
[1754241290306,0.391477,114210.0,114200.0,0.7579452]
[1754241291210,0.394477,114210.0,114200.0,1.1187452]
[1754241291915,0.394477,114210.0,114200.0,1.12752916]
[1754241292118,0.391477,114210.0,114200.0,1.12752916]
[1754241292416,0.389477,114210.0,114200.0,1.12752916]
[1754241292814,0.425587,114210.0,114200.0,1.12752916]
[1754241293914,0.459057,114210.0,114200.0,1.12752916]
[1754241299210,0.459057,114210.0,114200.0,1.39472916]
[1754241300826,0.48034464,114210.0,114200.0,1.39472916]
[1754241301924,0.24019324,114210.0,114200.0,1.39472916]
[1754241302113,0.19641424,114210.0,114200.0,1.93589909]
[1754241302621,0.02128764,114210.0,114200.0,1.93589909]
[1754241302922,0.6117491,114230.0,114220.0,0.3192007]
[1754241303120,1.33849355,114230.0,114220.0,0.6415907]
[1754241304118,0.97769355,114230.0,114220.0,0.6415907]
[1754241304316,1.33849355,114230.0,114220.0,0.6415907]
[1754241304622,0.97969355,114230.0,114220.0,0.6415907]
[1754241305118,0.4152391,114230.0,114220.0,0.6415907]
[1754241305319,0.4152391,114230.0,114220.0,0.7567547]
[1754241305522,0.4162391,114230.0,114220.0,0.7567547]
[1754241306521,0.4152391,114230.0,114220.0,0.7567547]
[1754241308316,0.4152391,114230.0,114220.0,1.0255147]
[1754241309518,0.95640903,114230.0,114220.0,1.0255147]
[1754241311924,0.95640903,114230.0,114220.0,0.5574647]
[1754241312117,1.31720903,114230.0,114220.0,0.8261046]
[1754241312716,1.31720903,114230.0,114220.0,0.9854646]
[1754241312923,1.31720903,114230.0,114220.0,1.0187446]
[1754241313126,1.31820903,114230.0,114220.0,1.0187446]
[1754241313925,1.32120903,114230.0,114220.0,0.7515446]
[1754241314623,1.31820903,114230.0,114220.0,0.7515446]
[1754241314826,0.95940903,114230.0,114220.0,0.7515446]
[1754241315323,1.32020903,114230.0,114220.0,0.7515446]
[1754241315727,1.34139819,114230.0,114220.0,0.7515446]
[1754241316024,1.32020903,114230.0,114220.0,0.7515446]
[1754241316223,1.34140033,114230.0,114220.0,0.7515446]
[1754241318627,1.34324165,114230.0,114220.0,0.7515446]
[1754241319416,1.34424918,114230.0,114220.0,0.7515446]
[1754241321525,1.34449649,114230.0,114220.0,0.7515446]
[1754241321929,1.34349649,114230.0,114220.0,0.7515446]
[1754241323128,1.34449649,114230.0,114220.0,0.7515446]
[1754241324635,0.80332656,114230.0,114220.0,0.4829046]
[1754241324825,1.34449649,114230.0,114220.0,0.7512246]
[1754241325432,1.34449649,114230.0,114220.0,0.4829046]
[1754241325624,1.34449649,114230.0,114220.0,0.7512246]
[1754241325824,0.98369649,114230.0,114220.0,0.4829046]
[1754241326032,0.98369649,114230.0,114220.0,0.7511846]
[1754241326530,1.34449649,114230.0,114220.0,0.7511846]
[1754241326831,0.98369649,114230.0,114220.0,0.7511846]
[1754241329931,1.34449649,114230.0,114220.0,0.7511846]
[1754241331833,0.98369649,114230.0,114220.0,0.7511846]
[1754241332138,1.34449649,114230.0,114220.0,0.7511846]
[1754241332833,0.20237276,114230.0,114220.0,1.65315453]
[1754241333237,0.23348276,114230.0,114220.0,1.65315453]
[1754241333434,0.02728746,114230.0,114220.0,1.65315453]
[1754241334137,0.23348276,114230.0,114220.0,1.1119846]
[1754241334838,0.35988276,114230.0,114220.0,1.1119846]
[1754241335738,0.27748276,114230.0,114220.0,1.1119846]
[1754241336940,0.35988276,114230.0,114220.0,1.1119846]
[1754241337142,0.39450276,114230.0,114220.0,1.1119846]
[1754241337535,0.39450276,114230.0,114220.0,1.3791846]
[1754241347449,0.39496953,114230.0,114220.0,1.3791846]
[1754241347649,0.20283953,114230.0,114220.0,1.3791846]
[1754241348949,0.02775423,114230.0,114220.0,1.3791846]
[1754241349551,0.02675423,114230.0,114220.0,1.92035453]
[1754241349744,0.02675423,114230.0,114220.0,1.92135453]
[1754241350352,0.02675423,114230.0,114220.0,1.92035453]
[1754241350553,0.00509616,114230.0,114220.0,1.92135453]
[1754241350753,0.00309616,114230.0,114220.0,1.92235453]
[1754241351354,0.00309616,114230.0,114220.0,1.92135453]
[1754241351550,0.00309616,114230.0,114220.0,1.3811846]
[1754241351751,0.00309616,114230.0,114220.0,1.92235453]
[1754241356065,0.17818146,114230.0,114220.0,1.3805046]
[1754241356666,0.20819146,114230.0,114220.0,1.3805046]
[1754241359765,0.17818146,114230.0,114220.0,1.92167453]
[1754241360070,0.00309616,114230.0,114220.0,1.92167453]
[1754241361271,0.00309616,114230.0,114220.0,1.92267453]
[1754241361867,0.00309616,114230.0,114220.0,1.92067453]
[1754241362071,0.00309616,114230.0,114220.0,1.92167453]
[1754241362262,0.17818166,114230.0,114220.0,1.92367453]
[1754241362463,0.17818166,114230.0,114220.0,1.3825046]
[1754241362664,0.17818166,114230.0,114220.0,1.92367453]
[1754241363361,0.00309616,114230.0,114220.0,1.92367453]
[1754241363759,0.00309616,114230.0,114220.0,1.0066546]
[1754241364066,0.17818176,114230.0,114220.0,1.3866246]
[1754241364271,0.00309616,114230.0,114220.0,1.92779453]
[1754241364671,0.00309616,114230.0,114220.0,1.92479453]
[1754241364973,0.00309616,114230.0,114220.0,1.92379453]
[1754241365173,0.17818176,114230.0,114220.0,1.92379453]
[1754241365867,0.17818176,114230.0,114220.0,1.3826246]
[1754241366073,0.17818176,114230.0,114220.0,1.92379453]
[1754241369782,0.17818176,114230.0,114220.0,1.3826246]
[1754241370079,0.17818176,114230.0,114220.0,1.92379453]
[1754241370780,0.78692898,114230.0,114220.0,1.99137182]
[1754241371880,0.81798898,114230.0,114220.0,1.72253182]
[1754241372079,0.86030898,114230.0,114220.0,1.99101182]
[1754241372980,0.25156176,114230.0,114220.0,1.99101182]
[1754241373280,0.86030898,114230.0,114220.0,1.99101182]
[1754241373574,0.88278456,114230.0,114220.0,1.99101182]
[1754241374778,0.27403734,114230.0,114220.0,1.99101182]
[1754241374978,0.88278456,114230.0,114220.0,1.99101182]
[1754241375371,0.88278456,114230.0,114220.0,1.99093182]
[1754241375573,0.96612456,114230.0,114220.0,1.99093182]
[1754241376581,0.35737734,114230.0,114220.0,1.99093182]
[1754241376880,0.96612456,114230.0,114220.0,1.99093182]
[1754241377174,0.35737734,114230.0,114220.0,1.99093182]
[1754241377380,0.96612456,114230.0,114220.0,1.99093182]
[1754241378177,0.96612456,114230.0,114220.0,1.3821846]
[1754241378376,0.96612456,114230.0,114220.0,1.99093182]
[1754241378575,0.85172456,114230.0,114220.0,1.99093182]
[1754241378975,0.88278456,114230.0,114220.0,1.99093182]
[1754241379572,0.93275456,114230.0,114220.0,1.99093182]
[1754241380074,0.96612456,114230.0,114220.0,1.99093182]
[1754241380679,0.96612456,114230.0,114220.0,1.3821846]
[1754241380879,0.96612456,114230.0,114220.0,1.99093182]
[1754241381080,1.00079456,114230.0,114220.0,1.99093182]
[1754241381679,1.00079456,114230.0,114220.0,1.72253182]
[1754241381871,1.00079456,114230.0,114220.0,1.3819846]
[1754241382076,1.00079456,114230.0,114220.0,1.99073182]
[1754241383592,0.97831898,114230.0,114220.0,1.2371046]
[1754241383884,0.97831898,114230.0,114220.0,1.2996446]
[1754241384186,0.97831898,114230.0,114220.0,1.90839182]
[1754241384986,0.97831898,114230.0,114220.0,1.0314446]
[1754241385285,0.97831898,114230.0,114220.0,1.2996046]
[1754241385784,0.97831898,114230.0,114220.0,1.0314446]
[1754241385988,0.97831898,114230.0,114220.0,0.839294]
[1754241386586,0.97831898,114230.0,114220.0,0.7461148]
[1754241386786,0.97831898,114230.0,114220.0,1.0143948]
[1754241387088,0.97831898,114230.0,114220.0,0.9836848]
[1754241387294,0.97831898,114230.0,114220.0,1.0143948]
[1754241387888,0.36957176,114230.0,114220.0,1.0143148]
[1754241388188,0.97831898,114230.0,114220.0,1.0143148]
[1754241389386,0.97931898,114230.0,114220.0,1.0143148]
[1754241390484,0.97931898,114230.0,114220.0,0.8255848]
[1754241390691,1.34011898,114230.0,114220.0,0.8255848]
[1754241390893,1.36260973,114230.0,114220.0,0.8762248]
[1754241391193,1.36260973,114230.0,114220.0,0.7154048]
[1754241391378,1.36260973,114230.0,114220.0,0.9834848]
[1754241391576,0.75386251,114230.0,114220.0,0.9834848]
[1754241391877,1.36260973,114230.0,114220.0,1.0141948]
[1754241392281,1.36260973,114230.0,114220.0,0.7461148]
[1754241392490,1.34011898,114230.0,114220.0,1.0141948]
[1754241394990,1.34011898,114230.0,114220.0,0.7461148]
[1754241395191,1.34011898,114230.0,114220.0,1.0141548]
[1754241395985,1.34011898,114230.0,114220.0,0.7461148]
[1754241396388,1.34011898,114230.0,114220.0,1.0140748]
[1754241399188,0.252106,114210.0,114200.0,0.63976046]
[1754241399388,1.58400044,114210.0,114200.0,0.90760046]
[1754241399590,0.97834938,114210.0,114200.0,0.90760046]
[1754241400104,1.9478966,114210.0,114200.0,0.35205396]
[1754241400290,1.9478966,114210.0,114200.0,0.64036536]
[1754241400496,1.33914938,114210.0,114200.0,0.64236536]
[1754241400790,1.9478966,114210.0,114200.0,0.64236536]
[1754241400991,1.33914938,114210.0,114200.0,0.64236536]
[1754241401297,1.33914938,114210.0,114200.0,0.64444536]
[1754241401494,1.9478966,114210.0,114200.0,0.64444536]
[1754241402094,1.9478966,114210.0,114200.0,0.6356614]
[1754241402292,1.9478966,114210.0,114200.0,0.386964]
[1754241402896,1.9478966,114210.0,114200.0,0.5620952]
[1754241403093,1.9478966,114210.0,114200.0,0.6850052]
[1754241403292,1.9478966,114210.0,114200.0,0.7166852]
[1754241403499,1.9478966,114210.0,114200.0,0.7488452]
[1754241404185,1.9478966,114210.0,114200.0,0.419414]
[1754241404389,1.9478966,114210.0,114200.0,0.418414]
[1754241404792,1.9478966,114210.0,114200.0,0.385964]
[1754241404992,1.9498966,114210.0,114200.0,0.384964]
[1754241405800,1.9508966,114210.0,114200.0,0.382884]
[1754241406000,1.95190373,114210.0,114200.0,0.382884]
[1754241406698,1.95190373,114210.0,114200.0,0.115164]
[1754241406901,1.95190373,114210.0,114200.0,0.382884]
[1754241407497,2.22567653,114210.0,114200.0,0.382884]
[1754241407698,2.24819814,114210.0,114200.0,0.115164]
[1754241407894,2.24819846,114210.0,114200.0,0.082974]
[1754241408098,2.24921015,114210.0,114200.0,0.082974]
[1754241408297,2.22668822,114210.0,114200.0,0.082974]
[1754241408802,2.24920463,114210.0,114200.0,0.082974]
[1754241409202,2.25021632,114210.0,114200.0,0.082974]
[1754241410199,2.25032998,114210.0,114200.0,0.082974]
[1754241410400,0.3332519,114180.0,114170.0,1.56342755]
[1754241410602,0.3332519,114180.0,114170.0,2.09854755]
[1754241410795,0.94199912,114180.0,114170.0,2.09854755]
[1754241410992,0.94199912,114180.0,114170.0,2.13070755]
[1754241411196,0.94823945,114180.0,114170.0,2.13070755]
[1754241411603,0.94823945,114180.0,114170.0,2.13270755]
[1754241411903,0.33949223,114180.0,114170.0,2.13270755]
[1754241412105,0.94823945,114180.0,114170.0,2.13270755]
[1754241412299,0.94823945,114180.0,114170.0,2.49350755]
[1754241412497,0.94823945,114180.0,114170.0,2.49450755]
[1754241412697,0.94823945,114180.0,114170.0,2.13370755]
[1754241413005,0.94823945,114180.0,114170.0,2.49250755]
[1754241413198,0.94823945,114180.0,114170.0,2.49150755]
[1754241413400,0.94823945,114180.0,114170.0,2.60667155]
[1754241415598,0.94823945,114180.0,114170.0,3.21541877]
[1754241415599,0.79014945,114180.0,114170.0,3.21541877]
[1754241416406,0.84116945,114180.0,114170.0,3.21541877]
[1754241417303,0.79014945,114180.0,114170.0,3.21541877]
[1754241417606,0.00624033,114180.0,114170.0,3.21541877]
[1754241418301,0.00624033,114180.0,114170.0,3.21741877]
[1754241418501,0.00624033,114180.0,114170.0,3.21841877]
[1754241418706,0.00624033,114180.0,114170.0,3.15022514]
[1754241419408,0.00624033,114180.0,114170.0,3.14922514]
[1754241421106,0.1751466,114190.0,114180.0,0.4932774]
[1754241421308,0.1751466,114190.0,114180.0,1.39563099]
[1754241421707,0.3064972,114200.0,114190.0,0.2166966]
[1754241422012,0.38000356,114200.0,114190.0,0.9906566]
[1754241422308,0.46843356,114200.0,114190.0,0.9906566]
[1754241422501,1.00998715,114200.0,114190.0,0.9906566]
[1754241423110,1.01198715,114200.0,114190.0,0.9906566]
[1754241423312,1.01198715,114200.0,114190.0,1.2578566]
[1754241423512,0.49113356,114200.0,114190.0,1.2578566]
[1754241423810,1.03268715,114200.0,114190.0,1.2578566]
[1754241424312,0.49113356,114200.0,114190.0,1.2578566]
[1754241424712,1.03268715,114200.0,114190.0,1.2588566]
[1754241425213,0.49113356,114200.0,114190.0,1.3740206]
[1754241425413,1.03368715,114200.0,114190.0,1.3730206]
[1754241425713,1.03168715,114200.0,114190.0,1.3730206]
[1754241426014,1.03268715,114200.0,114190.0,1.3730206]
[1754241428214,1.03268715,114200.0,114190.0,0.837074]
[1754241428416,1.41137715,114200.0,114190.0,0.837074]
[1754241428713,1.41137715,114200.0,114190.0,0.682524]
[1754241429014,1.95293074,114200.0,114190.0,0.414524]
[1754241429210,1.95293074,114200.0,114190.0,0.682564]
[1754241429416,1.41137715,114200.0,114190.0,0.415364]
[1754241431016,1.41137715,114200.0,114190.0,0.304524]
[1754241431216,1.41137715,114200.0,114190.0,0.572564]
[1754241432816,1.95293074,114200.0,114190.0,0.383204]
[1754241433009,1.95293074,114200.0,114190.0,0.115164]
[1754241433615,1.95493074,114200.0,114190.0,0.115164]
[1754241434518,1.95293074,114200.0,114190.0,0.115164]
[1754241434816,1.95493074,114200.0,114190.0,0.144934]
[1754241435310,1.95693074,114200.0,114190.0,0.115164]
[1754241435510,2.23066181,114200.0,114190.0,0.115164]
[1754241435912,2.23166181,114200.0,114190.0,0.115164]
[1754241436620,2.0555258,114200.0,114190.0,0.115164]
[1754241436819,2.0575258,114200.0,114190.0,0.115164]
[1754241437015,2.23266181,114200.0,114190.0,0.115164]
[1754241437724,0.351222,114180.0,114170.0,1.50901]
[1754241437922,1.27606195,114180.0,114170.0,1.24093]
[1754241438623,1.63686195,114180.0,114170.0,1.24093]
[1754241439416,1.63786195,114180.0,114170.0,1.24093]
[1754241440619,1.63786195,114180.0,114170.0,1.356094]
[1754241441218,1.63986195,114180.0,114170.0,1.356094]
[1754241441826,1.64086195,114180.0,114170.0,1.356094]
[1754241442832,1.64086195,114180.0,114170.0,1.437674]
[1754241443231,1.64086195,114180.0,114170.0,1.406274]
[1754241443530,1.64086195,114180.0,114170.0,1.356094]
[1754241444530,1.64086195,114180.0,114170.0,1.406274]
[1754241444931,1.64086195,114180.0,114170.0,1.437674]
[1754241445133,1.63886195,114180.0,114170.0,1.437674]
[1754241445334,1.63986195,114180.0,114170.0,1.437674]
[1754241445931,1.63886195,114180.0,114170.0,1.437674]
[1754241446132,1.64086195,114180.0,114170.0,1.437674]
[1754241446433,1.64086195,114180.0,114170.0,0.266864]
[1754241446630,1.64086195,114180.0,114170.0,0.164284]
[1754241446935,1.64086195,114180.0,114170.0,0.144934]
[1754241448840,1.73240079,114180.0,114170.0,0.144934]
[1754241449732,1.73340759,114180.0,114170.0,0.144934]
[1754241450942,1.73441415,114180.0,114170.0,0.115164]
[1754241451240,1.74311157,114180.0,114170.0,0.115164]
[1754241451837,1.74411813,114180.0,114170.0,0.115164]
[1754241452032,1.91928613,114180.0,114170.0,0.115164]
[1754241452341,1.91928613,114180.0,114140.0,1.70767038]
[1754241452342,0.248538,114150.0,114140.0,1.70767038]
[1754241452542,1.24044159,114150.0,114140.0,1.7305751]
[1754241452941,1.24346151,114150.0,114140.0,1.8105251]
[1754241453345,1.24346151,114150.0,114140.0,1.8165251]
[1754241453837,1.26166151,114150.0,114140.0,0.4107851]
[1754241454140,1.24346151,114150.0,114140.0,0.4107851]
[1754241454730,1.24346151,114150.0,114140.0,0.4057851]
[1754241454929,1.24346151,114150.0,114140.0,0.4087851]
[1754241455135,1.24346151,114150.0,114140.0,0.18977]
[1754241455334,1.26166151,114150.0,114140.0,0.303934]
[1754241455938,1.28427214,114150.0,114140.0,0.303934]
[1754241457143,0.74271855,114150.0,114140.0,0.303934]
[1754241457445,1.28427214,114150.0,114140.0,0.4791574]
[1754241457842,1.28427214,114150.0,114140.0,0.188284]
[1754241458039,1.37699756,114150.0,114140.0,0.118164]
[1754241458244,1.37699756,114150.0,114140.0,0.147934]
[1754241458546,1.37699589,114150.0,114140.0,0.217464]
[1754241458844,1.37699589,114150.0,114140.0,0.238464]
[1754241459032,1.37699589,114150.0,114140.0,0.269864]
[1754241461444,1.37699589,114150.0,114140.0,0.188284]
[1754241461940,1.37699466,114150.0,114140.0,0.147934]
[1754241462143,1.37699466,114150.0,114140.0,0.118164]
[1754241464049,1.37699466,114150.0,114140.0,0.148764]
[1754241464846,0.83544107,114150.0,114140.0,0.148764]
[1754241465148,1.37699466,114150.0,114140.0,0.148764]
[1754241466748,0.83544107,114150.0,114140.0,0.118164]
[1754241467047,1.37699466,114150.0,114140.0,0.118164]
[1754241467247,1.37699466,114150.0,114140.0,0.148764]
[1754241467749,1.37249466,114150.0,114140.0,0.148764]
[1754241475660,1.37250341,114150.0,114140.0,0.148764]
[1754241481465,1.37250341,114150.0,114140.0,0.305914]
[1754241481958,0.5616444,114150.0,114140.0,0.4811372]
[1754241482152,0.2008444,114150.0,114140.0,0.4811372]
[1754241483763,0.74239799,114150.0,114140.0,0.4811372]
[1754241483964,0.2008444,114150.0,114140.0,0.4811372]
[1754241484159,0.74239799,114150.0,114140.0,0.4811372]
[1754241485060,0.79192799,114150.0,114140.0,0.4811372]
[1754241485463,0.79192799,114150.0,114140.0,0.7483372]
[1754241486865,0.2829044,114150.0,114140.0,0.7483372]
[1754241487167,0.82445799,114150.0,114140.0,0.7483372]
[1754241487365,0.84538799,114150.0,114140.0,0.7483372]
[1754241488063,0.87743799,114150.0,114140.0,0.7483372]
[1754241491067,0.3358844,114150.0,114140.0,0.7483372]
[1754241491267,0.3358844,114150.0,114140.0,1.1091372]
[1754241493064,0.87743799,114150.0,114140.0,1.1091372]
[1754241495273,0.85482151,114150.0,114140.0,1.1091372]
[1754241495868,0.87395151,114150.0,114140.0,0.7483372]
[1754241496073,0.89658173,114150.0,114140.0,0.7483372]
[1754241500580,0.35502814,114150.0,114140.0,0.7483372]
[1754241500778,0.89658173,114150.0,114140.0,0.7483372]
[1754241503777,1.25738173,114150.0,114140.0,0.7483372]
[1754241506775,1.25738173,114150.0,114140.0,1.1091372]
[1754241506776,0.89658173,114150.0,114140.0,1.1091372]
[1754241507274,0.35502814,114150.0,114140.0,0.7483372]
[1754241507481,0.89658173,114150.0,114140.0,0.7483372]
[1754241511884,0.35502814,114150.0,114140.0,0.7483372]
[1754241512086,0.89658173,114150.0,114140.0,0.7483372]
[1754241512682,0.96474182,114150.0,114140.0,0.7483372]
[1754241514385,1.5744555,114150.0,114140.0,0.7483372]